bitfinex/quotes_BTCUSD_20240827
["timestamp","ask_amount","ask_price","bid_price","bid_amount"]
[1724738547791,0.16068311,63192.0,63191.0,0.03936152]
[1724738554957,1.18646811,63192.0,63191.0,0.0149075]
[1724738556601,1.28646811,63192.0,63191.0,0.0149075]
[1724738560793,0.89367311,63192.0,63191.0,0.0149075]
[1724738561142,0.67191544,63192.0,63191.0,0.0149075]
[1724738561344,0.16068311,63192.0,63191.0,0.01534297]
[1724738561660,0.16068311,63192.0,63191.0,0.04003268]
[1724738561815,0.47717811,63192.0,63191.0,0.04003268]
[1724738562587,0.47717811,63192.0,63191.0,0.03959721]
[1724738562588,0.84104165,63192.0,63191.0,0.03959721]
[1724738562793,0.84104165,63192.0,63191.0,0.0149075]
[1724738562794,0.88841044,63192.0,63191.0,0.0149075]
[1724738563207,0.79367311,63192.0,63191.0,0.0149075]
[1724738563406,0.88839823,63192.0,63191.0,0.0149075]
[1724738565259,0.9132093,63192.0,63191.0,0.0149075]
[1724738565461,0.91320394,63192.0,63191.0,0.0149075]
[1724738565668,1.05450394,63192.0,63191.0,0.0149075]
[1724738567446,1.37099894,63192.0,63191.0,0.0149075]
[1724738567671,1.37100943,63192.0,63191.0,0.0149075]
[1724738569478,1.39400943,63192.0,63191.0,0.0149075]
[1724738569833,1.29927918,63192.0,63191.0,0.0149075]
[1724738570579,1.27627918,63192.0,63191.0,0.0149075]
[1724738570789,1.13497918,63192.0,63191.0,0.0149075]
[1724738570986,1.25335038,63192.0,63191.0,0.0149075]
[1724738576195,1.22965673,63192.0,63191.0,0.0149075]
[1724738576566,1.13497918,63192.0,63191.0,0.0149075]
[1724738577675,1.27627918,63192.0,63191.0,0.0149075]
[1724738577876,1.29908872,63192.0,63191.0,0.0149075]
[1724738579064,1.27608872,63192.0,63191.0,0.0149075]
[1724738582626,1.19978872,63192.0,63191.0,0.0149075]
[1724738588415,1.34192736,63192.0,63191.0,0.0149075]
[1724738592928,1.36492736,63192.0,63191.0,0.0149075]
[1724738594418,1.22278872,63192.0,63191.0,0.0149075]
[1724738595047,1.31154289,63192.0,63191.0,0.0149075]
[1724738598635,1.24654289,63192.0,63191.0,0.0149075]
[1724738599706,1.15778872,63192.0,63191.0,0.0149075]
[1724738600433,0.81829372,63192.0,63191.0,0.0149075]
[1724738600642,0.81829372,63192.0,63191.0,0.24909714]
[1724738600643,0.02705672,63192.0,63191.0,0.24909714]
[1724738601052,0.14562858,63192.0,63191.0,0.24909714]
[1724738601257,0.02705672,63192.0,63191.0,0.16034297]
[1724738601455,0.02705672,63192.0,63191.0,0.18525268]
[1724738601456,0.18530372,63192.0,63191.0,0.18525268]
[1724738601662,0.18430372,63192.0,63191.0,0.17825268]
[1724738601919,0.50179872,63192.0,63191.0,0.18525268]
[1724738602134,0.50179872,63192.0,63191.0,0.18481721]
[1724738602656,0.50079872,63192.0,63191.0,0.17781721]
[1724738602852,0.49979872,63192.0,63191.0,0.17081721]
[1724738603102,1.13378872,63192.0,63191.0,0.0079075]
[1724738603305,1.13278872,63192.0,63191.0,0.0009075]
[1724738603682,1.2770377,63192.0,63191.0,0.0149075]
[1724738604037,1.13478872,63192.0,63191.0,0.03089825]
[1724738604232,0.81829372,63192.0,63191.0,0.03089825]
[1724738604456,0.93683815,63192.0,63191.0,0.03089825]
[1724738605301,0.81829372,63192.0,63191.0,0.03089825]
[1724738605556,0.93683065,63192.0,63191.0,0.03089825]
[1724738605762,0.81829372,63192.0,63191.0,0.03089825]
[1724738607738,0.81829372,63192.0,63191.0,0.0149075]
[1724738609791,0.81829372,63192.0,63191.0,0.1599075]
[1724738609792,0.30382352,63192.0,63191.0,0.1599075]
[1724738609950,0.50179872,63192.0,63191.0,0.1599075]
[1724738610345,0.62030964,63192.0,63191.0,0.1599075]
[1724738610613,0.50179872,63192.0,63191.0,0.1599075]
[1724738612024,0.50179872,63192.0,63191.0,0.0978075]
[1724738613604,0.50179872,63192.0,63191.0,0.1136418]
[1724738615961,0.81829372,63192.0,63191.0,0.1136418]
[1724738619472,0.81829372,63192.0,63191.0,0.0978075]
[1724738631561,0.81810326,63192.0,63191.0,0.0978075]
[1724738632412,0.50160826,63192.0,63191.0,0.0978075]
[1724738632614,0.30361371,63192.0,63191.0,0.0978075]
[1724738633052,0.50160826,63192.0,63191.0,0.0978075]
[1724738633257,0.50160826,63192.0,63191.0,0.12251721]
[1724738643075,0.18511326,63192.0,63191.0,0.12251721]
[1724738643248,0.30357001,63192.0,63191.0,0.12251721]
[1724738644849,0.62006501,63192.0,63191.0,0.12251721]
[1724738646746,0.30360656,63192.0,63191.0,0.12251721]
[1724738647638,0.30360656,63192.0,63191.0,0.0978075]
[1724738648164,0.62010156,63192.0,63191.0,0.0978075]
[1724738651714,0.62010994,63192.0,63191.0,0.0978075]
[1724738652177,0.14536794,63192.0,63191.0,0.09824297]
[1724738652386,0.14536794,63192.0,63191.0,0.36854398]
[1724738654208,0.14536794,63192.0,63191.0,0.21029398]
[1724738659462,0.30361494,63192.0,63191.0,0.21029398]
[1724738659828,0.62010994,63192.0,63191.0,0.0149075]
[1724738660039,0.89970326,63192.0,63191.0,0.0149075]
[1724738660438,1.21619826,63192.0,63191.0,0.0149075]
[1724738666144,1.13459826,63192.0,63191.0,0.0149075]
[1724738685669,1.13459826,63192.0,63191.0,0.0945075]
[1724738688108,1.13459826,63192.0,63191.0,0.0149075]
[1724738690339,1.13459826,63192.0,63191.0,0.0244018]
[1724738690554,0.50160826,63192.0,63191.0,0.1691018]
[1724738690755,0.02686626,63192.0,63191.0,0.64428727]
[1724738691006,0.02686626,63192.0,63191.0,1.27728727]
[1724738691177,0.02686626,63192.0,63191.0,1.30028727]
[1724738691384,0.02686626,63192.0,63191.0,1.47133139]
[1724738691925,0.02586626,63192.0,63191.0,1.44946528]
[1724738692481,0.02486626,63192.0,63191.0,1.44246528]
[1724738692686,0.02586626,63192.0,63191.0,1.45546528]
[1724738693095,0.02486626,63192.0,63191.0,1.44246528]
[1724738693315,5.519e-05,63192.0,63191.0,1.44246528]
[1724738693511,0.00205519,63192.0,63191.0,1.46946528]
[1724738693942,5.519e-05,63192.0,63191.0,1.44246528]
[1724738694143,0.00105519,63192.0,63191.0,1.45646528]
[1724738694361,0.00205519,63192.0,63191.0,1.47046528]
[1724738694517,0.00205519,63192.0,63191.0,1.45646528]
[1724738694722,0.00205519,63192.0,63191.0,1.47046528]
[1724738702180,0.00205519,63192.0,63191.0,0.99778727]
[1724738703356,0.00205519,63192.0,63191.0,1.31428727]
[1724738703617,0.00205519,63192.0,63191.0,0.99778727]
[1724738704691,0.00205519,63192.0,63191.0,1.06354144]
[1724738705517,0.00205519,63192.0,63191.0,0.74704144]
[1724738705729,0.00205519,63192.0,63191.0,1.21971945]
[1724738705931,0.00205519,63192.0,63191.0,1.24271945]
[1724738706155,0.00205519,63192.0,63191.0,1.55921945]
[1724738706990,0.00205519,63192.0,63191.0,1.08654144]
[1724738707843,0.00205519,63192.0,63191.0,1.40304144]
[1724738708001,0.00205519,63192.0,63191.0,1.08654144]
[1724738708223,0.00205519,63192.0,63191.0,1.40304144]
[1724738710160,0.00205519,63192.0,63191.0,1.08654144]
[1724738710362,0.00205519,63192.0,63191.0,0.97478727]
[1724738710567,0.00205519,63192.0,63191.0,1.06354144]
[1724738712075,0.00205519,63192.0,63191.0,1.38004144]
[1724738716012,0.00205519,63192.0,63191.0,1.40304144]
[1724738717340,0.00205519,63192.0,63191.0,1.87779144]
[1724738720976,0.00205519,63192.0,63191.0,2.35046945]
[1724738722805,0.00205519,63192.0,63191.0,2.03396945]
[1724738724593,0.00205519,63192.0,63191.0,1.78903727]
[1724738724796,0.00205519,63192.0,63191.0,1.87779144]
[1724738727491,0.00205519,63192.0,63191.0,1.81269144]
[1724738727913,0.00205519,63192.0,63191.0,1.38443727]
[1724738728121,0.00205519,63192.0,63191.0,1.39359144]
[1724738729594,0.00205519,63192.0,63191.0,1.07709144]
[1724738732524,0.00205519,63192.0,63191.0,0.51358727]
[1724738732525,0.14475519,63192.0,63191.0,0.51358727]
[1724738732732,0.61949719,63192.0,63191.0,0.51358727]
[1724738732933,0.61949719,63192.0,63191.0,0.50409297]
[1724738733270,0.6903844,63192.0,63191.0,0.50409297]
[1724738733517,0.61849719,63192.0,63191.0,0.49009297]
[1724738733665,0.61949719,63192.0,63191.0,0.50409297]
[1724738734095,0.61949719,63192.0,63191.0,0.49009297]
[1724738734096,0.30200219,63192.0,63191.0,0.49009297]
[1724738734415,0.30100219,63192.0,63191.0,0.58145598]
[1724738734616,0.30100219,63192.0,63191.0,0.58945598]
[1724738734617,0.30200219,63192.0,63191.0,0.58945598]
[1724738734794,0.30300219,63192.0,63191.0,0.59645598]
[1724738734994,0.30200219,63192.0,63191.0,0.58945598]
[1724738735179,0.22460219,63192.0,63191.0,0.58945598]
[1724738735384,0.00105519,63192.0,63191.0,0.74770598]
[1724738735888,0.00105519,63192.0,63191.0,0.58945598]
[1724738736117,0.00205519,63192.0,63191.0,0.59645598]
[1724738740541,0.06735519,63192.0,63191.0,0.59645598]
[1724738742242,0.22560219,63192.0,63191.0,0.59645598]
[1724738742444,0.06735519,63192.0,63191.0,0.59645598]
[1724738742642,0.14475519,63192.0,63191.0,0.59645598]
[1724738748506,0.30300219,63192.0,63191.0,0.59645598]
[1724738748719,0.14475519,63192.0,63191.0,0.59645598]
[1724738751101,0.30300219,63192.0,63191.0,0.59645598]
[1724738752978,0.14475519,63192.0,63191.0,0.59645598]
[1724738753414,0.06735519,63192.0,63191.0,0.59645598]
[1724738754950,0.22560219,63192.0,63191.0,0.59645598]
[1724738756368,0.00205519,63192.0,63191.0,0.59645598]
[1724738762216,0.00205519,63192.0,63191.0,0.4906575]
[1724738762360,0.69025966,63192.0,63191.0,0.4906575]
[1724738762563,1.00675466,63192.0,63191.0,0.4906575]
[1724738762777,0.47679719,63192.0,63191.0,0.4906575]
[1724738762980,0.00205519,63192.0,63191.0,0.57984714]
[1724738763177,0.00205519,63192.0,63191.0,0.66742735]
[1724738763747,0.00205519,63192.0,63191.0,0.82567735]
[1724738764194,0.00205519,63192.0,63191.0,0.98392735]
[1724738764526,0.00205519,63192.0,63191.0,1.14217735]
[1724738765010,0.00205519,63192.0,63191.0,1.45867735]
[1724738765161,0.00205519,63192.0,63191.0,1.60097735]
[1724738765623,0.00205519,63192.0,63191.0,1.94047735]
[1724738766546,0.00105519,63192.0,63191.0,1.93247735]
[1724738766941,0.00205519,63192.0,63191.0,1.94647735]
[1724738767069,0.00105519,63192.0,63191.0,1.93947735]
[1724738767270,0.00105519,63192.0,63191.0,1.92547735]
[1724738767271,5.519e-05,63192.0,63191.0,1.92547735]
[1724738767474,0.00105519,63192.0,63191.0,1.93947735]
[1724738768028,0.02486127,63192.0,63191.0,1.58597735]
[1724738768154,0.02586127,63192.0,63191.0,1.59997735]
[1724738768779,0.02586127,63192.0,63191.0,1.61397735]
[1724738769175,0.02586127,63192.0,63191.0,1.59997735]
[1724738769616,0.02586127,63192.0,63191.0,1.61397735]
[1724738769781,0.00105519,63192.0,63191.0,1.61397735]
[1724738769991,5.519e-05,63192.0,63191.0,1.58597735]
[1724738770218,5.519e-05,63192.0,63191.0,1.59997735]
[1724738770416,5.519e-05,63192.0,63191.0,1.61397735]
[1724738771990,5.519e-05,63192.0,63191.0,1.59997735]
[1724738772196,5.519e-05,63192.0,63191.0,1.95347735]
[1724738779256,5.519e-05,63192.0,63191.0,2.42615536]
[1724738780605,5.519e-05,63192.0,63191.0,2.41215536]
[1724738781372,5.519e-05,63192.0,63191.0,2.42615536]
[1724738781720,5.519e-05,63192.0,63191.0,2.41215536]
[1724738782070,5.519e-05,63192.0,63191.0,2.42615536]
[1724738790258,5.519e-05,63192.0,63191.0,1.89287735]
[1724738796249,5.519e-05,63192.0,63191.0,1.86987735]
[1724738801252,5.519e-05,63192.0,63191.0,1.78817735]
[1724738801613,5.519e-05,63192.0,63191.0,1.47167735]
[1724738803935,5.519e-05,63192.0,63191.0,1.38292318]
[1724738804131,5.519e-05,63192.0,63191.0,1.78817735]
[1724738804334,5.519e-05,63192.0,63191.0,1.61647735]
[1724738805086,5.519e-05,63192.0,63191.0,1.93297735]
[1724738806756,0.02485996,63192.0,63191.0,1.61647735]
[1724738812856,0.02485996,63192.0,63191.0,1.55467735]
[1724738816036,5.519e-05,63192.0,63191.0,1.47167735]
[1724738819402,5.519e-05,63192.0,63191.0,1.87117735]
[1724738819595,5.519e-05,63192.0,63191.0,1.55467735]
[1724738819717,5.519e-05,63192.0,63191.0,1.87117735]
[1724738819917,0.02486043,63192.0,63191.0,1.55467735]
[1724738820367,0.02486043,63192.0,63191.0,1.87117735]
[1724738822180,0.02486043,63192.0,63191.0,2.42151624]
[1724738822391,0.04736339,63211.0,63210.0,0.15863747]
[1724738822600,0.09472679,63215.0,63213.0,0.47502047]
[1724738822601,0.04736339,63215.0,63213.0,0.47502047]
[1724738822752,0.04736339,63219.0,63218.0,0.15861747]
[1724738822967,0.10893346,63220.0,63219.0,0.15861547]
[1724738823173,0.10893346,63220.0,63219.0,0.47497547]
[1724738823374,0.0615,63220.0,63219.0,0.47497547]
[1724738824616,0.0615,63220.0,63219.0,0.48297547]
[1724738824809,0.062324,63220.0,63219.0,0.48297547]
[1724738824936,0.000824,63220.0,63219.0,0.63910715]
[1724738825144,0.000824,63220.0,63219.0,0.64610715]
[1724738825985,0.000824,63220.0,63219.0,0.65410715]
[1724738826140,0.000824,63220.0,63219.0,0.63910715]
[1724738826334,0.000824,63220.0,63219.0,0.63110715]
[1724738826765,0.000824,63220.0,63219.0,0.64010715]
[1724738827185,0.000824,63220.0,63219.0,0.63110715]
[1724738827618,0.000824,63220.0,63219.0,0.64810715]
[1724738827979,0.000824,63220.0,63219.0,0.96446715]
[1724738828239,0.000824,63220.0,63219.0,0.95446715]
[1724738828538,0.000824,63220.0,63219.0,0.63110715]
[1724738829302,0.000824,63220.0,63219.0,0.63910715]
[1724738829791,0.000824,63220.0,63219.0,0.64810715]
[1724738830234,0.02562124,63220.0,63219.0,0.95546715]
[1724738830666,0.02562124,63220.0,63219.0,0.96546715]
[1724738831147,0.02562124,63220.0,63219.0,1.36352715]
[1724738831358,0.02562124,63220.0,63219.0,1.83806715]
[1724738831873,0.02562124,63220.0,63219.0,1.83006715]
[1724738832279,0.02562124,63220.0,63219.0,1.84106715]
[1724738833115,0.000824,63220.0,63219.0,1.83106715]
[1724738833490,0.000824,63220.0,63219.0,1.84306715]
[1724738834752,0.02561883,63220.0,63219.0,1.84306715]
[1724738835483,0.000824,63220.0,63219.0,1.84306715]
[1724738838910,0.000824,63220.0,63219.0,1.44500715]
[1724738839116,0.000824,63220.0,63219.0,1.53376132]
[1724738839921,0.000824,63220.0,63219.0,1.21740132]
[1724738842901,0.000824,63220.0,63219.0,0.90104132]
[1724738843101,0.082124,63220.0,63219.0,0.65410715]
[1724738843303,0.082124,63220.0,63219.0,0.74286132]
[1724738843504,0.082124,63220.0,63219.0,0.90104132]
[1724738843704,0.000824,63220.0,63219.0,0.90104132]
[1724738844475,0.000824,63220.0,63219.0,1.35940132]
[1724738844680,0.000824,63220.0,63219.0,1.99212132]
[1724738844934,0.000824,63220.0,63219.0,2.24829933]
[1724738845114,0.000824,63220.0,63219.0,2.58765933]
[1724738845871,0.000824,63220.0,63219.0,2.57565933]
[1724738846074,0.000824,63220.0,63219.0,2.56465933]
[1724738846499,0.000824,63220.0,63219.0,2.59265933]
[1724738846736,0.000824,63220.0,63219.0,2.57865933]
[1724738846934,0.000824,63220.0,63219.0,2.56465933]
[1724738847238,0.000824,63220.0,63219.0,2.57865933]
[1724738848627,0.000824,63220.0,63219.0,2.56465933]
[1724738848793,0.000824,63220.0,63219.0,2.57865933]
[1724738849406,0.000824,63220.0,63219.0,2.59265933]
[1724738853066,0.000824,63220.0,63219.0,2.57865933]
[1724738853270,0.000824,63220.0,63219.0,2.56465933]
[1724738853488,0.000824,63220.0,63219.0,2.59265933]
[1724738860168,0.000824,63220.0,63219.0,2.27629933]
[1724738860580,0.000824,63220.0,63219.0,2.21369933]
[1724738865116,0.000824,63220.0,63219.0,2.13429933]
[1724738865277,0.000824,63220.0,63219.0,2.04554516]
[1724738865480,0.000824,63220.0,63219.0,2.13429933]
[1724738876894,0.000824,63220.0,63219.0,1.66176132]
[1724738877099,0.000824,63220.0,63219.0,1.63876132]
[1724738878687,0.02561858,63220.0,63219.0,1.63876132]
[1724738884256,0.02297217,63220.0,63219.0,1.63876132]
[1724738884499,0.0605,63225.0,63224.0,0.474502]
[1724738884633,0.0605,63225.0,63224.0,0.71938785]
[1724738885334,0.0605,63225.0,63224.0,0.71982332]
[1724738885553,0.1413,63225.0,63224.0,0.63106915]
[1724738885716,0.1413,63225.0,63224.0,0.64506915]
[1724738886503,0.1413,63225.0,63224.0,0.65906915]
[1724738887650,0.16609431,63225.0,63224.0,0.65906915]
[1724738890752,0.16609431,63225.0,63224.0,0.34273415]
[1724738894587,0.02479431,63225.0,63224.0,0.34273415]
[1724738895206,0.02561831,63225.0,63224.0,0.34273415]
[1724738896221,0.02561831,63225.0,63224.0,0.65906915]
[1724738906361,0.000824,63225.0,63224.0,0.65906915]
[1724738907370,0.000824,63225.0,63224.0,0.97540415]
[1724738907719,0.02561747,63225.0,63224.0,0.97540415]
[1724738908360,0.000824,63225.0,63224.0,0.97540415]
[1724738908565,0.02561772,63225.0,63224.0,0.97540415]
[1724738908992,0.000824,63225.0,63224.0,0.97540415]
[1724738910524,0.02561755,63225.0,63224.0,0.97540415]
[1724738911271,0.000824,63225.0,63224.0,0.97540415]
[1724738912252,0.000824,63225.0,63224.0,0.65906915]
[1724738912864,0.02561802,63225.0,63224.0,0.65906915]
[1724738913612,0.02542764,63225.0,63224.0,0.65906915]
[1724738915093,0.02542764,63225.0,63224.0,0.34273415]
[1724738915269,0.0966441,63225.0,63224.0,0.34273415]
[1724738915628,0.0966441,63225.0,63224.0,0.65906915]
[1724738915838,0.0966441,63225.0,63224.0,0.18413168]
[1724738916045,0.0966441,63225.0,63224.0,0.18456715]
[1724738916046,0.23771962,63225.0,63224.0,0.18456715]
[1724738916218,0.16332764,63225.0,63224.0,0.18456715]
[1724738916424,0.16332764,63225.0,63224.0,0.18413168]
[1724738916558,0.32149264,63225.0,63224.0,0.18413168]
[1724738916765,0.32466816,63225.0,63224.0,0.15656715]
[1724738916966,0.158175,63221.0,63220.0,0.0009064]
[1724738917163,0.612425,63221.0,63220.0,0.0009064]
[1724738917365,1.04744192,63221.0,63220.0,0.0009064]
[1724738917771,0.928775,63221.0,63220.0,0.0009064]
[1724738918314,0.928775,63221.0,63220.0,0.0069064]
[1724738918518,1.04741479,63221.0,63220.0,0.0069064]
[1724738918719,1.04741479,63221.0,63220.0,0.0119064]
[1724738919474,1.04741479,63221.0,63220.0,0.06059459]
[1724738919672,1.04741479,63221.0,63220.0,0.05459459]
[1724738919881,0.73106479,63221.0,63220.0,0.05759459]
[1724738920061,0.73106479,63221.0,63220.0,0.05259459]
[1724738920245,0.73106479,63221.0,63220.0,0.04959459]
[1724738920446,0.612425,63221.0,63220.0,0.05259459]
[1724738920639,0.612425,63221.0,63220.0,0.05359459]
[1724738920841,0.612425,63221.0,63220.0,0.04959459]
[1724738921250,0.612425,63221.0,63220.0,0.05059459]
[1724738921452,0.70729506,63221.0,63220.0,0.05059459]
[1724738922146,0.612425,63221.0,63220.0,0.05059459]
[1724738922636,0.70730776,63221.0,63220.0,0.05059459]
[1724738923271,0.70730776,63221.0,63220.0,0.04959459]
[1724738923401,0.70730776,63221.0,63220.0,0.05059459]
[1724738923606,0.70730776,63221.0,63220.0,0.05159459]
[1724738924103,0.70730776,63221.0,63220.0,0.04959459]
[1724738924321,0.70730776,63221.0,63220.0,0.05059459]
[1724738925496,0.612425,63221.0,63220.0,0.05059459]
[1724738926305,0.70728917,63221.0,63220.0,0.05059459]
[1724738926505,0.70728862,63221.0,63220.0,0.05059459]
[1724738928127,1.02363862,63221.0,63220.0,0.0019064]
[1724738929426,1.02363862,63221.0,63220.0,0.0009064]
[1724738930033,1.02363862,63221.0,63220.0,0.0019064]
[1724738930490,0.928775,63221.0,63220.0,0.0019064]
[1724738930615,1.02363862,63221.0,63220.0,0.0019064]
[1724738930834,1.33998862,63221.0,63220.0,0.0019064]
[1724738931050,0.928775,63221.0,63220.0,0.0019064]
[1724738931465,1.245125,63221.0,63220.0,0.0019064]
[1724738933034,1.245125,63221.0,63220.0,0.0009064]
[1724738933283,0.928775,63221.0,63220.0,0.0009064]
[1724738933695,1.02353622,63221.0,63220.0,0.0009064]
[1724738934480,0.928775,63221.0,63220.0,0.0009064]
[1724738935275,0.790875,63221.0,63220.0,0.0009064]
[1724738935856,0.86192496,63221.0,63220.0,0.0009064]
[1724738937292,0.22922496,63221.0,63220.0,0.0009064]
[1724738937606,0.23240048,63221.0,63220.0,0.0009064]
[1724738938277,0.22922496,63221.0,63220.0,0.0039064]
[1724738938631,0.22922496,63221.0,63220.0,0.0029064]
[1724738938834,0.22922496,63221.0,63220.0,0.0009064]
[1724738939279,0.54875048,63221.0,63220.0,0.0009064]
[1724738939858,0.61085048,63221.0,63220.0,0.0009064]
[1724738940060,0.68665048,63221.0,63220.0,0.0019064]
[1724738940264,1.00300048,63221.0,63220.0,0.0039064]
[1724738941102,1.00300048,63221.0,63220.0,0.0019064]
[1724738941296,1.00300048,63221.0,63220.0,0.0009064]
[1724738942773,1.36678227,63221.0,63220.0,0.0009064]
[1724738942975,1.366702,63221.0,63220.0,0.0009064]
[1724738943178,1.24830052,63221.0,63220.0,0.0009064]
[1724738943893,1.34299698,63221.0,63220.0,0.0009064]
[1724738944455,1.24830052,63221.0,63220.0,0.0009064]
[1724738948889,0.158202,63210.0,63209.0,0.08025338]
[1724738949299,0.474607,63210.0,63209.0,0.08025338]
[1724738949756,0.49940826,63210.0,63209.0,0.08025338]
[1724738950130,0.49940826,63210.0,63209.0,0.09225338]
[1724738950688,0.49940826,63210.0,63209.0,0.10325338]
[1724738951453,0.49940826,63210.0,63209.0,0.023]
[1724738959342,0.18300326,63210.0,63209.0,0.1657]
[1724738959753,0.49940826,63210.0,63209.0,0.1657]
[1724738960407,0.5467477,63210.0,63209.0,0.1657]
[1724738962551,0.49940826,63210.0,63209.0,0.1657]
[1724738963174,0.18300326,63210.0,63209.0,0.1657]
[1724738963348,0.18617878,63210.0,63209.0,0.1657]
[1724738965169,0.18617878,63210.0,63209.0,0.1666064]
[1724738965581,0.18700278,63210.0,63209.0,0.1666064]
[1724738968595,0.18681237,63210.0,63209.0,0.1666064]
[1724738969235,0.25792139,63210.0,63209.0,0.1666064]
[1724738971089,0.57432639,63210.0,63209.0,0.1666064]
[1724738971676,0.57432639,63210.0,63209.0,0.1028064]
[1724738973541,0.57432639,63210.0,63209.0,0.0239064]
[1724738974024,0.89073139,63210.0,63209.0,0.0239064]
[1724738974244,0.81962237,63210.0,63209.0,0.0239064]
[1724738975151,0.91446203,63210.0,63209.0,0.0239064]
[1724738978136,0.91446698,63210.0,63209.0,0.0239064]
[1724738980612,0.59806198,63210.0,63209.0,0.0239064]
[1724738981696,0.50321737,63210.0,63209.0,0.0239064]
[1724738982276,0.81962237,63210.0,63209.0,0.0239064]
[1724738984500,0.93817813,63210.0,63209.0,0.0239064]
[1724738986958,1.21172737,63210.0,63209.0,0.0239064]
[1724738988749,1.21172737,63210.0,63209.0,0.0119064]
[1724738989506,1.21172737,63210.0,63209.0,0.0009064]
[1724738989851,1.21172737,63210.0,63209.0,0.0099064]
[1724738990049,1.36268154,63210.0,63209.0,0.0099064]
[1724738990254,1.36268154,63210.0,63209.0,0.0199064]
[1724738990892,1.27392737,63210.0,63209.0,0.0199064]
[1724738991095,1.13285185,63210.0,63209.0,0.0199064]
[1724738991271,1.13285185,63210.0,63209.0,0.0109064]
[1724738991495,1.27510005,63210.0,63209.0,0.0009064]
[1724738991693,1.13285185,63210.0,63209.0,0.0009064]
[1724738992116,1.13285185,63210.0,63209.0,0.0039064]
[1724738993293,1.13285185,63210.0,63209.0,0.0049064]
[1724738993420,1.13285185,63210.0,63209.0,0.0019064]
[1724738993622,1.13285185,63210.0,63209.0,0.0039064]
[1724738994508,0.81644685,63210.0,63209.0,0.0039064]
[1724738999607,0.95869505,63210.0,63209.0,0.0039064]
[1724738999778,1.03439505,63210.0,63209.0,0.0039064]
[1724739000009,0.89214685,63210.0,63209.0,0.0039064]
[1724739008083,0.98090102,63210.0,63209.0,0.0039064]
[1724739008286,1.29730602,63210.0,63209.0,0.0039064]
[1724739008846,1.29705602,63210.0,63209.0,0.0039064]
[1724739009753,1.29705602,63210.0,63209.0,0.0019064]
[1724739009949,1.29705602,63210.0,63209.0,0.0009064]
[1724739010293,1.29805602,63210.0,63209.0,0.0009064]
[1724739010570,1.29705602,63210.0,63209.0,0.0009064]
[1724739011008,1.29805602,63210.0,63209.0,0.0009064]
[1724739012789,1.29705602,63210.0,63209.0,0.0009064]
[1724739013190,1.22135602,63210.0,63209.0,0.0009064]
[1724739013399,1.22235602,63210.0,63209.0,0.0009064]
[1724739013604,1.13260185,63210.0,63209.0,0.0009064]
[1724739013820,1.13360185,63210.0,63209.0,0.0761064]
[1724739014035,1.13360185,63210.0,63209.0,0.09023704]
[1724739014036,0.50079185,63210.0,63209.0,0.09023704]
[1724739014267,0.50079185,63210.0,63209.0,0.71880621]
[1724739014268,0.02562526,63210.0,63209.0,0.71880621]
[1724739014518,0.07400728,63210.0,63209.0,0.71880621]
[1724739014739,0.02662526,63210.0,63209.0,0.71880621]
[1724739015398,0.02762526,63210.0,63209.0,0.71880621]
[1724739015803,0.02762526,63210.0,63209.0,0.40239621]
[1724739015804,0.02562526,63210.0,63209.0,0.40239621]
[1724739016225,0.02762526,63210.0,63209.0,0.40939621]
[1724739016415,0.02762526,63210.0,63209.0,0.32064204]
[1724739016635,0.02562526,63210.0,63209.0,0.32064204]
[1724739017072,0.02562526,63210.0,63209.0,0.32664204]
[1724739018157,0.02562526,63210.0,63209.0,0.64305204]
[1724739018796,0.02562526,63210.0,63209.0,0.32664204]
[1724739023290,0.02543485,63210.0,63209.0,0.32664204]
[1724739025034,0.02543485,63210.0,63209.0,0.16843704]
[1724739030293,0.02543485,63210.0,63209.0,0.25719121]
[1724739032209,0.000824,63210.0,63209.0,0.25719121]
[1724739034869,0.000824,63210.0,63209.0,0.41539621]
[1724739036332,0.000824,63210.0,63209.0,0.25719121]
[1724739036534,0.000824,63210.0,63209.0,0.16843704]
[1724739039023,0.154021,63212.0,63209.0,0.16843704]
[1724739039267,0.154021,63212.0,63210.0,0.04244598]
[1724739040558,0.154021,63212.0,63210.0,0.04544598]
[1724739041594,0.154021,63212.0,63211.0,0.0757]
[1724739042695,0.154021,63212.0,63211.0,0.1408]
[1724739043436,0.154021,63212.0,63211.0,0.1438]
[1724739043634,0.154021,63212.0,63211.0,0.22117258]
[1724739044439,0.0473458,63219.0,63211.0,0.10261055]
[1724739044641,0.0473458,63220.0,63219.0,0.0757]
[1724739044917,0.5244458,63221.0,63219.0,0.0757]
[1724739046404,0.4771,63221.0,63219.0,0.0757]
[1724739046542,0.635275,63221.0,63220.0,0.06991152]
[1724739046753,1.02264371,63221.0,63220.0,0.06991152]
[1724739046954,0.158187,63216.0,63215.0,0.0757]
[1724739047353,0.04734901,63219.0,63215.0,0.0757]
[1724739047573,0.04734901,63219.0,63217.0,0.1358]
[1724739047991,0.158181,63219.0,63217.0,0.1358]
[1724739050868,0.20553054,63219.0,63217.0,0.1358]
[1724739051070,0.20553054,63219.0,63218.0,0.03827432]
[1724739052403,0.158181,63219.0,63218.0,0.03827432]
[1724739055392,0.22920532,63219.0,63218.0,0.03827432]
[1724739058392,0.158181,63219.0,63218.0,0.03827432]
[1724739059467,0.25293884,63219.0,63218.0,0.03827432]
[1724739060447,0.158181,63219.0,63218.0,0.03827432]
[1724739061428,0.159005,63219.0,63218.0,0.03827432]
[1724739063292,0.47854052,63219.0,63218.0,0.03827432]
[1724739064335,0.59703821,63219.0,63218.0,0.03827432]
[1724739064543,0.47854052,63219.0,63218.0,0.03827432]
[1724739065488,0.79490052,63219.0,63218.0,0.03827432]
[1724739067762,0.47854052,63219.0,63218.0,0.03827432]
[1724739070843,0.158183,63218.0,63215.0,0.0766]
[1724739071038,0.118559,63216.0,63215.0,0.0766]
[1724739071672,0.08077552,63217.0,63212.0,0.0775064]
[1724739071884,0.09484672,63214.0,63213.0,0.08875417]
[1724739072098,0.07113749,63215.0,63214.0,0.298292]
[1724739072302,0.07113749,63216.0,63215.0,0.29829]
[1724739072512,0.09484672,63218.0,63215.0,0.29829]
[1724739072513,0.07113749,63217.0,63215.0,0.35326223]
[1724739072676,0.04742822,63217.0,63216.0,0.298287]
[1724739072878,0.04742822,63217.0,63216.0,0.1401]
[1724739073085,0.04742822,63217.0,63216.0,0.25280526]
[1724739074799,0.04742822,63217.0,63216.0,0.41099226]
[1724739075231,0.04742822,63217.0,63216.0,0.41199226]
[1724739075399,0.04723782,63217.0,63216.0,0.41199226]
[1724739076248,0.07195067,63219.0,63217.0,0.0766]
[1724739076444,0.07195067,63219.0,63216.0,0.33539226]
[1724739076445,0.07195067,63219.0,63218.0,0.24797524]
[1724739081081,0.07195067,63219.0,63218.0,0.40615724]
[1724739081400,0.07195657,63219.0,63218.0,0.40615724]
[1724739081809,0.07195657,63219.0,63218.0,0.78682224]
[1724739082019,0.07195657,63219.0,63218.0,1.10318724]
[1724739084276,0.07195657,63219.0,63218.0,0.69806807]
[1724739084480,0.07195657,63219.0,63218.0,0.78682224]